bitfinex-derivatives/quotes_ETHF0:USTF0_20260223
["timestamp","ask_amount","ask_price","bid_price","bid_amount"]
[1771814326862,3.85143267,1863.3,1862.0,3.71407012]
[1771814327767,3.85143267,1863.1,1862.0,3.71407012]
[1771814328862,3.85143267,1863.1,1862.0,9.27194596]
[1771814329064,3.85143267,1863.4,1862.1,3.71407012]
[1771814329866,3.85143267,1863.6,1862.3,3.71407012]
[1771814330664,3.85143267,1863.6,1861.8,6.60817]
[1771814330665,3.85769429,1863.9,1863.2,3.71407012]
[1771814330962,3.85769429,1863.9,1863.2,3.71808493]
[1771814331363,3.85769429,1863.9,1863.2,0.00401481]
[1771814331564,5.9214355,1863.8,1862.9,3.71407012]
[1771814331764,3.85143267,1863.7,1862.9,3.71407012]
[1771814332561,3.85143267,1863.7,1862.9,3.71807279]
[1771814333260,0.00626162,1863.9,1862.9,3.71807279]
[1771814334569,3.85769429,1863.9,1862.9,3.71807279]
[1771814335958,0.00626162,1863.9,1862.9,3.71807279]
[1771814336668,3.85769429,1863.9,1862.9,3.71807279]
[1771814340767,3.85769429,1863.9,1862.9,3.98654279]
[1771814340768,0.00626162,1863.9,1862.9,3.98654279]
[1771814340967,13.298622,1865.0,1863.2,3.71407012]
[1771814340968,3.85143267,1864.7,1863.2,3.71407012]
[1771814341169,3.85143267,1864.5,1863.2,3.71407012]
[1771814341565,3.85143267,1864.5,1863.4,3.71407012]
[1771814341966,3.85522565,1864.5,1863.4,3.71407012]
[1771814342566,3.85143267,1864.3,1863.2,3.71407012]
[1771814346275,3.85143267,1864.3,1863.2,3.72407012]
[1771814347773,3.85143267,1864.1,1863.2,3.72407012]
[1771814349581,3.85143267,1864.1,1863.2,0.01]
[1771814349776,3.80190577,1863.8,1862.9,0.00400267]
[1771814350075,3.53356577,1863.7,1862.9,3.72402628]
[1771814350277,3.53356577,1863.7,1862.9,0.00400267]
[1771814350478,9.45500127,1863.7,1862.9,0.00400267]
[1771814350679,3.53356577,1863.6,1862.9,0.00400267]
[1771814351076,3.53356577,1863.6,1862.6,3.72002361]
[1771814351275,3.53356577,1863.4,1862.6,3.72002361]
[1771814351676,5.9214355,1863.5,1862.6,3.72002361]
[1771814351677,3.53356577,1863.6,1862.6,3.72002361]
[1771814352176,3.53356577,1863.4,1862.6,3.72379561]
[1771814353481,3.53356577,1863.9,1862.6,3.72379561]
[1771814353982,3.53356577,1863.8,1862.6,3.72379561]
[1771814354882,3.53356577,1863.6,1862.6,3.72379561]
[1771814356684,3.80194577,1863.6,1862.6,3.72379561]
[1771814356881,3.6512263,1863.4,1862.6,3.72379561]
[1771814357881,3.6512263,1863.4,1862.6,0.003772]
[1771814358081,10.5250263,1862.7,1861.6,3.64448673]
[1771814358286,3.6512263,1862.6,1861.6,3.64448673]
[1771814358482,3.65809457,1862.6,1861.6,3.64448673]
[1771814358984,3.6512263,1862.4,1861.6,3.64937704]
[1771814359182,3.6512263,1862.4,1861.6,0.00489031]
[1771814361183,3.6512263,1862.4,1861.6,3.64937704]
[1771814362681,3.6512263,1862.0,1860.8,3.64448673]
[1771814363788,3.6512263,1861.8,1860.8,3.64956345]
[1771814364383,3.6512263,1862.0,1860.8,3.64956345]
[1771814364786,3.6512263,1861.9,1860.8,3.64956345]
[1771814365487,3.6512263,1861.7,1860.8,3.64956345]
[1771814365882,0.26859,1862.1,1860.8,3.64956345]
[1771814366084,3.6512263,1862.3,1860.8,3.64956345]
[1771814366384,3.6512263,1862.1,1860.8,3.64956345]
[1771814367083,3.6512263,1861.9,1860.8,3.64956345]
[1771814370288,3.6512263,1861.5,1860.8,0.00507672]
[1771814370597,3.9199463,1861.2,1859.6,3.91343673]
[1771814370892,3.6512263,1861.1,1859.6,3.64448673]
[1771814371294,3.75186296,1861.1,1859.6,3.64448673]
[1771814371495,3.75840065,1861.1,1859.6,3.64828639]
[1771814371690,3.65776399,1861.1,1859.6,3.64828639]
[1771814371895,3.6512263,1860.9,1859.6,3.64828639]
[1771814373189,0.00653769,1861.1,1859.6,3.64828639]
[1771814373397,5.82227656,1860.8,1859.7,3.91342673]
[1771814373698,3.6512263,1861.0,1859.7,3.91342673]
[1771814374901,0.00653769,1861.1,1859.8,3.64448673]
[1771814375095,3.65776399,1861.1,1859.8,3.64448673]
[1771814375602,0.00653769,1861.1,1860.0,3.64448673]
[1771814375999,3.6512263,1861.6,1860.2,3.64448673]
[1771814376199,3.6512263,1861.6,1860.3,3.64448673]
[1771814377099,3.65696668,1861.6,1860.3,3.64448673]
[1771814378297,3.65696668,1861.6,1860.5,3.83083725]
[1771814379704,0.00574038,1861.6,1860.5,3.83083725]
[1771814380004,3.47138235,1861.6,1860.5,3.83083725]
[1771814380404,0.00574038,1861.6,1860.5,3.83083725]
[1771814382108,3.47138235,1861.6,1860.5,3.83083725]
[1771814383806,0.00574038,1861.6,1860.5,3.83083725]
[1771814384012,3.47138235,1861.6,1860.5,3.83083725]
[1771814385306,0.00574038,1861.6,1860.9,3.83083725]
[1771814385511,3.46564197,1862.1,1860.9,3.83083725]
[1771814386611,3.46992068,1862.1,1860.9,3.83083725]
[1771814387509,3.46564197,1862.8,1861.5,3.83083725]
[1771814387812,3.46564197,1862.5,1861.5,3.83083725]
[1771814388407,3.47050955,1862.5,1861.5,3.83623664]
[1771814390509,3.47050955,1862.5,1861.7,3.83083725]
[1771814394716,0.00486758,1862.5,1861.7,3.83083725]
[1771814396612,6.467,1863.4,1861.7,3.83083725]
[1771814396613,3.46564197,1863.3,1861.8,3.83083725]
[1771814397009,3.46564197,1863.3,1862.0,3.83083725]
[1771814397618,0.00686759,1863.3,1862.2,3.83083725]
[1771814397917,0.00686759,1863.3,1862.4,3.83083725]
[1771814400315,3.47250956,1863.3,1862.4,3.83083725]
[1771814402111,3.47250956,1863.3,1861.9,3.83083725]
[1771814402419,3.46564197,1863.1,1861.9,3.83083725]
[1771814402819,3.46564197,1862.9,1861.9,3.83083725]
[1771814404818,3.46564197,1862.7,1861.9,3.83083725]
[1771814405420,3.46564197,1862.7,1861.6,3.83083725]
[1771814405912,12.17987857,1863.2,1861.6,3.83083725]
[1771814405913,3.46564197,1862.5,1861.6,3.83083725]
[1771814410925,3.49490612,1862.8,1861.6,3.83083725]
[1771814411322,3.49490612,1862.7,1861.6,3.83083725]
[1771814411917,5.57604857,1862.9,1861.6,3.83083725]
[1771814411918,3.49490612,1862.5,1861.6,3.83083725]
[1771814412929,3.49490612,1862.5,1861.6,3.84083725]
[1771814415129,11.34617907,1863.1,1861.6,3.72201902]
[1771814415130,3.49490612,1862.8,1861.6,3.72201902]
[1771814415530,3.49490612,1862.7,1861.6,3.72201902]
[1771814417832,3.49490612,1862.7,1861.6,3.99066902]
[1771814418032,3.57082271,1863.2,1861.6,3.99066902]
[1771814418234,3.57082271,1863.0,1861.6,3.99066902]
[1771814419631,3.57082271,1863.2,1862.2,3.47592095]
[1771814419930,3.5776903,1863.3,1862.2,3.47592095]
[1771814420535,3.57082271,1863.1,1862.2,3.47592095]
[1771814420931,3.57082271,1862.9,1861.7,3.47592095]
[1771814421332,3.57082271,1862.7,1861.7,3.47592095]
[1771814422833,3.57082271,1862.7,1860.9,26.07266311]
[1771814422834,12.18452857,1861.8,1860.2,3.73761692]
[1771814423131,7.86060152,1861.7,1860.4,3.73761692]
[1771814423334,7.86060152,1861.6,1860.4,3.73761692]
[1771814423537,0.57516905,1861.5,1860.5,13.93436549]
[1771814423739,0.05843845,1861.3,1860.5,13.93436549]
[1771814423933,0.05843845,1861.3,1860.5,13.93871365]
[1771814424534,0.05843845,1861.3,1860.5,17.64712621]
[1771814425337,0.05843845,1861.3,1860.5,3.71276072]
[1771814425935,1.34565388,1861.1,1860.0,3.75323395]
[1771814426640,1.34565388,1860.9,1860.0,3.75323395]
[1771814426835,1.34565388,1860.9,1859.6,0.26894]
[1771814426836,1.34565388,1860.9,1860.2,3.75323395]
[1771814427844,1.42573937,1861.4,1860.4,3.70862312]
[1771814428143,7.34717487,1861.4,1860.4,3.70862312]
[1771814428339,5.9214355,1861.4,1860.6,3.70862312]
[1771814428548,1.43089039,1861.5,1860.6,3.70862312]
[1771814428743,1.43089039,1861.5,1860.8,3.70862312]
[1771814430445,0.00515102,1861.5,1860.8,17.64298861]
[1771814430651,0.00515102,1861.5,1861.0,3.73391821]
[1771814431049,1.36113902,1862.0,1861.2,3.7338036]
[1771814431647,1.36113902,1862.0,1861.4,3.7338036]
[1771814432052,0.00494657,1862.0,1861.4,17.67426587]
[1771814432253,0.00494657,1862.0,1861.5,3.67795592]
[1771814432455,1.47328305,1862.0,1861.5,3.67795592]
[1771814433054,0.00494657,1862.0,1861.7,3.67787573]
[1771814433255,1.46362339,1862.2,1861.7,3.67787573]
[1771814433454,1.46362339,1862.2,1861.5,3.67787573]
[1771814433653,1.46362339,1862.2,1861.6,17.61224122]
[1771814433950,1.46362339,1862.2,1861.6,3.67787573]
[1771814434150,1.46769411,1862.2,1861.6,3.67787573]
[1771814434549,0.00407072,1862.2,1861.6,3.67787573]
[1771814434848,0.00407072,1862.2,1861.8,3.6592047]
[1771814435156,1.76026641,1862.3,1861.8,3.6592047]
[1771814435450,1.76026641,1862.3,1861.8,13.93436549]
[1771814435654,1.76026641,1862.3,1861.5,3.65912779]
[1771814435856,1.76026641,1862.3,1861.6,13.93436549]
[1771814436055,1.76520865,1862.3,1861.6,17.58932098]
[1771814436449,1.76520865,1862.3,1846.6,110.05603817]
[1771814436450,13.2166,1861.9,1860.9,3.65495549]
[1771814436652,13.48522,1861.9,1860.9,3.65495549]
[1771814437154,5.9214355,1861.8,1861.0,4.40870166]
[1771814437352,5.9214355,1861.8,1861.0,4.40260488]
[1771814437552,5.9214355,1861.8,1861.0,4.40873267]
[1771814437753,0.26865,1861.7,1861.0,4.41482945]
[1771814438053,0.95437548,1861.6,1861.0,4.41482945]
[1771814438253,1.51317115,1861.8,1861.0,4.41482945]
[1771814438558,4.82290603,1862.3,1861.0,4.41482945]
[1771814441758,0.00494224,1862.3,1861.0,4.41482945]
[1771814442553,0.00494224,1862.3,1861.0,4.68357945]
[1771814442758,4.81796379,1862.6,1861.1,4.41033249]
[1771814443754,4.82249721,1862.6,1861.1,4.41033249]
[1771814443959,4.82249721,1862.6,1861.3,4.41033249]
[1771814444159,0.00453342,1862.6,1861.3,4.41033249]
[1771814444360,0.00453342,1862.6,1861.5,4.41033249]
[1771814444955,0.00453342,1862.6,1861.6,0.00609678]
[1771814445156,0.00453342,1862.6,1861.7,4.41033249]
[1771814446359,0.00453342,1862.6,1861.9,4.41033249]
[1771814446562,4.81796379,1863.0,1861.9,4.41033249]
[1771814446761,4.81796379,1863.0,1862.1,4.41033249]
[1771814447558,4.82395032,1863.0,1862.1,4.41033249]
[1771814448761,4.82395032,1863.0,1862.3,4.41033249]
[1771814449766,4.81796379,1863.8,1862.5,4.41033249]
[1771814449956,4.81796379,1863.6,1862.5,4.41033249]
[1771814450161,4.81796379,1863.6,1862.7,4.41033249]
[1771814450664,0.0055377,1863.6,1862.9,4.41033249]
[1771814450868,4.82350149,1863.6,1862.9,4.41033249]
[1771814451166,4.82350149,1863.6,1863.0,4.41642927]
[1771814451367,4.82350149,1863.6,1863.0,4.41033249]
[1771814452667,4.82350149,1863.6,1863.1,4.41642927]
[1771814452865,4.82350149,1863.6,1863.1,4.41033249]
[1771814457773,4.82350149,1863.6,1863.1,4.41642927]
[1771814459169,4.82350149,1863.6,1862.7,0.00653054]
[1771814459374,4.82350149,1863.6,1862.8,4.41642927]
[1771814460169,4.81796379,1863.4,1862.7,0.00653054]
[1771814460372,4.81796379,1863.2,1862.7,0.00653054]
[1771814460772,0.26842,1863.3,1861.3,19.74214]
[1771814460773,4.81796379,1863.0,1862.3,4.41033249]
[1771814460974,4.81796379,1863.4,1862.3,4.41033249]
[1771814461380,4.81796379,1863.2,1862.3,4.41033249]
[1771814461671,4.81796379,1862.8,1862.1,4.41033249]
[1771814461877,4.81796379,1862.8,1862.1,4.41505634]
[1771814463174,4.81796379,1862.6,1862.1,0.00472385]
[1771814463377,4.81796379,1862.6,1861.9,4.41033249]
[1771814463581,4.81796379,1862.4,1861.9,4.41033249]
[1771814464273,4.81796379,1862.4,1861.9,4.41535406]
[1771814464670,4.81796379,1862.4,1861.9,0.00502157]
[1771814464877,4.81796379,1862.2,1861.0,4.41033249]
[1771814465877,4.82249449,1862.2,1861.5,4.41033249]
[1771814467479,4.81796379,1861.8,1861.1,4.41033249]
[1771814471680,4.81796379,1861.8,1861.0,0.00472664]
[1771814473478,4.81796379,1861.8,1861.0,4.90122361]
[1771814475085,4.81410942,1861.9,1861.0,4.90122361]
[1771814475383,4.81410942,1862.1,1861.0,4.90122361]
[1771814475987,4.81410942,1861.9,1861.0,4.90122361]
[1771814480782,4.67362239,1862.2,1861.0,4.90122361]
[1771814489392,4.66909169,1862.0,1861.0,4.90122361]
[1771814489890,0.0045307,1862.2,1861.0,4.90122361]
[1771814490091,12.69373518,1862.1,1861.0,4.90122361]
[1771814490391,4.66909169,1862.1,1861.0,4.90122361]
[1771814495295,4.66909169,1861.9,1861.0,4.90122361]
[1771814497993,4.66909169,1862.1,1861.0,5.16997361]
[1771814498194,0.0045307,1862.2,1861.0,11.78129361]
[1771814498493,0.0045307,1862.2,1861.1,4.74210085]
[1771814499489,4.81626873,1862.2,1861.1,4.74210085]
[1771814501396,0.0045307,1862.2,1861.1,4.74210085]
[1771814501896,4.81626873,1862.2,1861.1,4.74210085]
[1771814506392,4.81626873,1862.2,1861.3,4.74210085]
[1771814511897,0.0045307,1862.2,1861.3,4.74210085]
[1771814512199,4.81626873,1862.2,1861.3,4.74210085]
[1771814516212,4.81173803,1862.0,1861.2,4.74210085]
[1771814516607,4.81173803,1862.0,1861.0,4.74682749]
[1771814525508,4.81173803,1861.8,1861.0,4.74682749]
[1771814526413,4.81173803,1861.8,1861.0,0.00472664]
[1771814526615,4.81173803,1861.6,1860.7,4.74210085]
[1771814526811,4.81173803,1861.6,1860.6,4.74210085]
[1771814527011,4.81173803,1861.4,1860.3,4.74210085]
[1771814527614,4.81173803,1861.4,1860.3,0.00417019]
[1771814527914,4.81173803,1861.2,1860.3,4.74627104]
[1771814531716,4.81173803,1861.2,1860.3,0.00417019]
[1771814531921,4.64273953,1861.0,1860.0,4.740066]
[1771814532915,4.64273953,1861.0,1860.0,4.74601284]
[1771814535622,4.64273953,1860.8,1860.0,4.74601284]
[1771814535816,4.6478982,1860.8,1860.0,4.74601284]
[1771814538222,4.44969812,1861.3,1860.0,5.01490284]
[1771814538821,4.44969812,1861.1,1860.0,4.74601284]
[1771814539022,4.71841812,1861.2,1860.0,4.74601284]
[1771814539227,4.72419594,1861.2,1860.0,4.74601284]
[1771814539523,4.45547594,1861.2,1860.0,4.74601284]
[1771814539919,4.45547594,1861.2,1860.0,4.75601284]
[1771814543728,4.45547594,1861.2,1860.2,4.70147025]
[1771814545727,0.00577782,1861.2,1860.2,4.70147025]
[1771814547632,0.00577782,1861.2,1860.4,4.70147025]
[1771814548023,4.45547594,1861.2,1860.4,4.70147025]
[1771814549224,0.00577782,1861.2,1860.4,4.70147025]
[1771814551333,6.467,1862.1,1860.3,0.26885]
[1771814551334,4.44969812,1862.0,1860.8,4.70147025]
[1771814552231,4.45557978,1862.0,1860.8,4.70147025]
[1771814561943,4.45557978,1862.0,1861.0,4.31098136]
[1771814566047,4.39603391,1862.0,1861.0,4.31098136]
[1771814567951,0.00588166,1862.0,1861.0,4.31098136]
[1771814568952,0.00588166,1862.0,1861.2,4.56790283]
[1771814569452,4.27100686,1862.3,1861.4,4.56790283]
[1771814570449,0.00507436,1862.3,1861.4,4.57223337]
[1771814573455,4.27100686,1862.6,1861.6,4.56790283]
[1771814574157,4.27100686,1863.1,1861.8,4.56790283]
[1771814574357,4.2773864,1863.1,1861.8,4.56790283]
[1771814576655,4.2773864,1863.1,1862.0,4.56790283]
[1771814596974,4.28656625,1862.9,1862.0,4.56790283]
[1771814603075,4.28656625,1862.9,1861.5,4.36130488]
[1771814604879,4.28656625,1862.7,1861.5,4.36130488]
[1771814608677,4.28656625,1862.7,1861.5,4.37130488]
[1771814616385,4.28656625,1862.4,1861.5,4.37130488]
[1771814619390,6.467,1862.9,1861.5,4.37130488]
[1771814619391,4.17423622,1862.5,1861.5,4.37130488]
[1771814635303,4.17423622,1862.5,1861.6,4.42024285]
[1771814636695,4.17423622,1863.0,1861.6,4.42024285]
[1771814636895,4.17423622,1862.8,1861.6,4.42024285]
[1771814637201,4.17423622,1862.8,1861.6,4.68889285]
[1771814641606,4.17423622,1862.8,1861.8,3.94712922]
[1771814641804,4.17423622,1862.8,1861.9,4.42024285]
[1771814643307,4.17423622,1862.8,1862.3,4.42024285]
[1771814644309,4.17423622,1863.0,1862.5,4.42024285]
[1771814644806,4.17423622,1863.0,1862.3,4.42024285]
[1771814649316,4.17423622,1863.0,1862.5,3.98792203]
[1771814649605,4.17423622,1863.0,1862.7,3.98792203]
[1771814649806,2.41396495,1863.2,1862.7,3.98792203]
[1771814650311,2.41924571,1863.7,1862.9,3.98792203]
[1771814650607,2.41924571,1863.4,1862.7,3.98792203]
[1771814650912,2.41924571,1863.1,1862.4,3.98792203]
[1771814651313,2.41924571,1863.1,1862.5,3.98792203]
[1771814651909,0.00516515,1863.4,1863.0,3.98792203]
[1771814652113,2.68930431,1864.1,1863.3,3.98792203]
[1771814652313,2.68930431,1864.1,1863.4,3.98792203]
[1771814652510,2.68930431,1863.7,1863.0,3.98792203]
[1771814652707,2.68930431,1863.7,1862.7,7.93264351]
[1771814652909,2.68930431,1863.3,1862.7,3.98792203]
[1771814653212,2.69433457,1863.3,1862.7,3.98792203]
[1771814656916,2.32352519,1863.3,1862.7,3.98792203]
[1771814659419,0.00503026,1863.3,1862.7,3.98792203]
[1771814662617,0.00503026,1863.3,1862.7,3.99792203]
[1771814668818,2.19348704,1863.3,1862.7,3.99792203]
[1771814671521,0.00503026,1863.3,1862.7,3.99792203]
[1771814674027,2.08450007,1863.9,1862.7,3.99792203]
[1771814675026,2.08997752,1863.9,1862.7,3.99792203]
[1771814675827,2.08550328,1863.9,1862.7,3.99792203]
[1771814677325,2.08550328,1863.9,1863.0,4.46489393]
[1771814679529,2.08550328,1863.9,1863.4,4.14396686]
[1771814682130,2.03745832,1863.9,1863.4,4.14396686]
[1771814682933,2.03745832,1863.9,1862.9,4.14396686]
[1771814684538,2.03745832,1863.9,1863.0,4.14396686]
[1771814686743,2.03745832,1863.9,1863.2,4.14396686]
[1771814687542,0.00547745,1863.9,1863.4,4.14396686]
[1771814690244,1.99893439,1863.9,1863.4,4.14396686]
[1771814702451,0.00547745,1863.9,1863.4,4.14396686]
[1771814702656,17.003362,1864.6,1863.4,4.14396686]
[1771814702657,1.93299069,1864.4,1863.4,4.14396686]
[1771814703659,1.9368554,1864.4,1863.4,4.14396686]
[1771814704651,8.01729876,1864.3,1863.4,4.14396686]
[1771814704858,1.97380103,1864.2,1863.4,4.14396686]
[1771814707155,2.00926532,1864.3,1863.4,4.14396686]
[1771814707656,2.01313003,1864.4,1863.4,4.14396686]
[1771814711362,9.99700589,1864.3,1863.4,4.14396686]
[1771814711563,1.98699956,1864.2,1863.4,4.14396686]
[1771814719566,0.00386471,1864.4,1863.4,4.14396686]
[1771814719766,1.88121062,1864.4,1863.4,4.14396686]
[1771814722263,0.00386471,1864.4,1863.4,4.14396686]
[1771814722965,1.83078012,1864.4,1863.4,4.14396686]
[1771814726871,1.83078012,1864.4,1863.4,4.41236686]
[1771814726872,0.00386471,1864.4,1863.4,4.41236686]
[1771814727263,0.00386471,1864.4,1863.7,4.32361215]
[1771814728568,1.79750881,1864.7,1863.7,4.32361215]
[1771814728763,8.26666132,1864.8,1863.7,4.32361215]
[1771814728969,1.79966132,1864.8,1863.7,4.32361215]
[1771814729571,1.80562769,1864.8,1863.7,4.32361215]
[1771814729869,0.00596637,1864.8,1863.7,4.32361215]
[1771814730171,1.79142029,1864.8,1863.7,4.32361215]
[1771814730868,0.00596637,1864.8,1863.7,4.32361215]
[1771814731068,1.81128434,1864.7,1863.7,4.33361215]
[1771814736275,1.85047125,1864.8,1863.7,4.33361215]
[1771814739081,1.8585659,1864.6,1863.7,4.33361215]
[1771814740277,1.82553878,1864.4,1863.3,4.08462166]
[1771814740479,8.8140306,1864.5,1863.0,4.08462166]
[1771814740480,1.82553878,1864.2,1863.0,4.08462166]
[1771814740880,1.82553878,1864.0,1863.0,4.08462166]
[1771814743480,1.82553878,1864.0,1862.6,4.08462166]
[1771814746477,1.65968305,1863.9,1862.6,4.08462166]
[1771814747688,1.64725942,1863.3,1862.5,4.08870895]
[1771814747986,1.65299766,1863.3,1862.5,4.08870895]
[1771814750791,1.58571708,1863.1,1862.5,0.00408729]
[1771814751187,1.58571708,1863.1,1862.5,4.08870895]
[1771814755001,1.79362233,1863.2,1862.5,4.08870895]
[1771814757397,1.52519233,1863.2,1862.5,4.08870895]
[1771814757601,1.53359585,1863.3,1862.5,4.08870895]
[1771814757905,0.00573824,1863.3,1862.5,4.08870895]
[1771814758704,1.48948632,1863.3,1862.5,4.08870895]
[1771814758897,0.00573824,1863.3,1862.5,4.08870895]
[1771814760705,0.26836,1863.8,1862.5,4.08870895]
[1771814760706,1.41442397,1864.2,1862.7,4.08462166]
[1771814761208,1.40338153,1863.8,1862.7,4.08462166]
[1771814761707,1.4073322,1863.8,1862.7,4.08462166]
[1771814772111,1.20030762,1864.5,1863.3,3.70217906]
[1771814773009,1.206519,1864.5,1863.3,3.70217906]
[1771814784427,0.00621138,1864.5,1863.3,3.70217906]
[1771814789026,0.98943981,1864.5,1863.3,3.70217906]
[1771814789830,0.00621138,1864.5,1863.3,3.70217906]
[1771814791134,0.95684405,1864.5,1863.3,3.70217906]
[1771814791832,0.95063267,1864.4,1863.3,3.70217906]
[1771814792037,0.95063267,1864.2,1862.6,3.74508035]
[1771814793435,0.95063267,1864.2,1863.4,3.74508035]
[1771814794836,0.95063267,1864.2,1863.3,3.75508035]
[1771814797038,0.93996599,1863.8,1862.6,3.74508035]
[1771814797237,0.93154127,1863.6,1862.6,3.74508035]
[1771814797536,0.93154127,1863.8,1862.6,3.74508035]
[1771814798236,0.92822185,1863.6,1862.6,3.74508035]
[1771814800234,1.14648563,1863.4,1862.5,0.00408729]
[1771814801035,1.14648563,1863.2,1862.1,3.51366642]
[1771814801240,1.13397241,1863.0,1862.1,3.51366642]
[1771814802039,1.13962664,1863.0,1862.1,3.51868442]
[1771814802432,0.00565423,1863.0,1862.1,3.51868442]
[1771814803534,1.07050775,1863.0,1862.1,3.51868442]
[1771814805139,0.00565423,1863.0,1862.1,3.51868442]
[1771814805341,1.03207465,1863.0,1862.1,3.51868442]
[1771814807140,0.00565423,1863.0,1862.1,3.51868442]
[1771814808039,1.0436486,1863.0,1862.1,3.51868442]
[1771814808635,0.00565423,1863.0,1862.1,3.51868442]
[1771814808835,1.0850815,1863.0,1862.1,3.51868442]
[1771814809138,0.00565423,1863.0,1862.1,3.51868442]
[1771814810941,1.09714895,1863.0,1862.1,3.51868442]
[1771814812534,1.09714895,1863.0,1861.5,3.51366642]
[1771814812840,1.10030265,1862.8,1861.5,3.51366642]
[1771814813544,1.10030265,1862.8,1861.5,3.52040984]
[1771814815940,1.08312395,1862.7,1861.5,3.52040984]
[1771814819542,6.467,1862.8,1861.5,3.52040984]
[1771814819748,7.53624647,1862.8,1861.5,3.52040984]
[1771814820143,1.05931405,1862.7,1861.5,3.52040984]
[1771814820837,6.467,1862.8,1861.6,3.51366642]
[1771814821147,7.51885273,1862.8,1861.6,3.51366642]
[1771814821441,1.05750696,1863.0,1861.6,3.51366642]
[1771814825253,0.00565423,1863.0,1861.8,3.51366642]
[1771814826547,0.00565423,1863.0,1862.0,3.51366642]
[1771814826952,0.99674845,1863.3,1862.0,3.51366642]
[1771814827154,0.98957367,1863.5,1862.0,3.51366642]
[1771814827448,8.04276002,1863.4,1862.2,3.51366642]
[1771814827653,7.45657367,1863.6,1862.2,3.51366642]
[1771814827852,7.46260365,1863.6,1862.2,3.51366642]
[1771814828049,0.98957367,1863.5,1862.2,3.51366642]
[1771814828552,0.98957367,1863.5,1862.4,3.49327835]
[1771814832558,6.47302998,1863.6,1862.6,3.49327835]
[1771814832858,0.82672943,1863.5,1862.6,3.49327835]
[1771814834758,0.82672943,1863.5,1862.5,3.49327835]
[1771814835662,0.79004258,1863.3,1862.5,3.49327835]
[1771814838659,0.77568299,1863.5,1862.5,3.49327835]
[1771814844862,6.74139998,1863.6,1862.5,3.49327835]
[1771814845069,0.67315824,1863.5,1862.5,3.49327835]
[1771814863986,0.50395027,1863.3,1862.5,3.49327835]
[1771814865688,10.93927877,1863.6,1862.5,3.49327835]
[1771814865890,8.62022156,1863.5,1862.5,3.49327835]
[1771814866086,8.04292,1863.4,1862.5,3.49327835]
[1771814866286,6.96034961,1863.6,1862.5,3.49327835]
[1771814866487,8.62095357,1863.5,1862.5,3.49327835]
[1771814866687,0.49922604,1863.3,1862.5,3.49327835]
[1771814875089,0.49809244,1863.1,1862.5,3.49327835]
[1771814875284,4.73466879,1863.3,1862.5,3.49327835]
[1771814875285,0.49809244,1862.9,1862.5,3.49327835]
[1771814875491,0.49809244,1863.0,1862.5,3.49327835]
[1771814878190,0.49809244,1863.0,1862.3,3.353699]
[1771814878392,0.56507171,1862.8,1862.3,3.353699]
[1771814880292,0.65280925,1862.7,1862.3,3.353699]
[1771814880996,0.65280925,1862.7,1862.2,3.35099311]
[1771814881897,0.6514978,1862.5,1862.0,3.34099311]
[1771814882093,1.98051038,1862.3,1861.6,3.34099311]
[1771814884499,2.30171934,1862.9,1861.6,3.34099311]
[1771814885294,0.26848,1862.9,1861.6,3.34099311]
[1771814885691,2.30134014,1863.2,1861.8,3.34099311]
[1771814888797,2.06020141,1862.9,1861.8,3.34099311]
[1771814889498,2.67914639,1862.3,1861.8,2.72170311]
[1771814890302,2.67753132,1862.1,1861.5,3.6115652]
[1771814890499,2.68449602,1862.1,1861.5,3.6115652]
[1771814891597,2.68449602,1862.1,1861.3,3.60482178]
[1771814892705,2.68449602,1862.1,1861.3,3.61053986]
[1771814893204,0.0069647,1862.1,1861.3,3.61053986]
[1771814893702,2.70245973,1862.1,1861.3,3.61053986]
[1771814895506,0.0069647,1862.1,1861.3,3.61053986]
[1771814896504,2.66213971,1862.1,1861.3,3.61053986]
[1771814902813,2.68176616,1862.0,1861.3,3.61053986]
[1771814904108,9.15593115,1862.1,1861.3,3.61053986]
[1771814904808,2.7173813,1862.0,1861.3,3.61053986]
[1771814905412,9.19158,1862.1,1861.3,3.61053986]
[1771814907907,2.72458211,1862.0,1861.3,3.61053986]
[1771814908711,6.4739647,1862.1,1861.3,3.61053986]
[1771814909314,9.19102664,1862.1,1861.3,3.61053986]
[1771814909611,6.4739647,1862.1,1861.3,3.61053986]
[1771814909817,5.85675809,1862.1,1861.3,3.61053986]
[1771814910115,2.2226237,1862.1,1861.3,3.61053986]
[1771814910317,3.42591058,1862.6,1861.3,3.61053986]
[1771814910817,3.43146662,1862.6,1861.3,3.61053986]
[1771814911209,3.42591058,1862.4,1861.3,3.61053986]
[1771814918622,3.78068399,1862.5,1861.3,3.61053986]
[1771814921624,3.51215399,1862.5,1861.3,3.61053986]
[1771814921924,0.00555604,1862.6,1861.5,3.55469796]
[1771814922126,3.51771003,1862.6,1861.5,3.55469796]
[1771814923323,3.51215399,1863.4,1862.0,3.82328796]
[1771814923527,3.51215399,1863.3,1862.0,3.82328796]
[1771814924028,3.51215399,1863.8,1862.3,3.55469796]
[1771814924228,3.51215399,1863.6,1862.3,3.55469796]
[1771814924428,0.00584978,1863.8,1862.7,16.00953953]
[1771814924630,3.51215399,1864.2,1862.8,3.55469796]
[1771814925529,3.51773773,1864.2,1862.8,3.56001488]
[1771814928932,3.51773773,1864.2,1863.0,3.55469796]
[1771814929330,0.00558374,1864.2,1863.2,3.55469796]
[1771814932540,3.51773773,1864.2,1863.2,3.55469796]
[1771814933329,0.00558374,1864.2,1863.2,3.55469796]
[1771814934830,3.51773773,1864.2,1863.2,3.55469796]
[1771814946347,3.51773773,1864.2,1863.2,3.56469796]
[1771814952348,3.35109454,1864.0,1863.2,3.56469796]
[1771814956045,3.35109454,1864.0,1863.2,0.01]
[1771814956250,3.35109454,1864.0,1863.2,3.67784699]
[1771814956751,3.35109454,1864.0,1863.2,0.01]
[1771814956949,3.44382435,1863.8,1863.2,0.01]
[1771814957649,3.44382435,1863.8,1863.2,3.67784699]
[1771814960452,3.44382435,1864.0,1863.2,3.67784699]
[1771814964062,3.44940809,1864.2,1863.2,3.67784699]
[1771814970565,3.44382435,1864.0,1863.2,3.67784699]
[1771814970764,3.71233435,1862.7,1861.5,3.66784699]
[1771814971060,3.44382435,1862.4,1861.5,3.66784699]
[1771814971262,3.44382435,1862.2,1860.5,3.66784699]
[1771814971659,3.45011726,1862.2,1860.5,3.67247726]
[1771814972055,3.45011726,1862.2,1860.7,3.66784699]
[1771814973066,0.00629291,1862.2,1860.7,3.66784699]
[1771814973759,3.45011726,1862.2,1860.7,3.66784699]
[1771814975061,7.90761804,1864.0,1862.4,6.60635]
[1771814975265,3.44382435,1864.0,1862.5,3.66784699]
[1771814975567,3.44382435,1864.0,1862.6,3.66784699]
[1771814975967,3.44893263,1864.0,1862.7,3.66784699]
[1771814978567,4.09442881,1863.8,1862.7,3.66784699]
[1771814978868,4.09442881,1863.8,1862.6,0.00537542]
[1771814979069,4.09442881,1863.8,1862.6,4.05405643]
[1771814982273,4.09442881,1863.9,1862.6,4.05405643]
[1771814988683,4.09442881,1863.9,1862.6,4.43605643]
[1771814989678,4.09442881,1863.9,1862.8,4.04868101]
[1771814994380,4.09442881,1863.6,1862.8,4.04868101]